bitfinex/quotes_ETHUSD_20251009
["timestamp","ask_amount","ask_price","bid_price","bid_amount"]
[1760029295682,0.4579,4286.4,4285.3,6.568]
[1760029295888,0.4579,4286.4,4285.4,2.44933504]
[1760029296087,0.4579,4286.4,4285.4,2.426]
[1760029296288,2.82669533,4286.9,4285.7,0.6336]
[1760029296289,0.005,4286.9,4285.7,0.6336]
[1760029296501,0.005,4286.9,4285.4,5.39307021]
[1760029296716,0.005,4286.9,4285.5,0.6336]
[1760029296919,0.005,4286.9,4285.3,1.92]
[1760029296920,0.4629,4286.9,4285.6,2.363]
[1760029297124,0.4629,4286.9,4285.6,4.789]
[1760029297494,0.4629,4286.9,4285.1,0.6336]
[1760029297694,0.4629,4286.9,4285.3,0.6336]
[1760029297996,0.4629,4286.9,4285.2,0.12672]
[1760029298182,0.4629,4286.9,4283.7,0.461]
[1760029298183,0.02339306,4286.8,4283.7,0.461]
[1760029298387,0.02339306,4286.8,4284.2,2.712]
[1760029298388,0.4579,4286.7,4284.2,2.712]
[1760029298625,2.33311329,4286.2,4284.3,1.92]
[1760029298817,2.33302102,4286.3,4284.4,0.6336]
[1760029299020,0.49006041,4286.5,4284.4,0.6336]
[1760029299208,4.71070094,4286.7,4284.6,0.6336]
[1760029299407,2.33300671,4286.4,4284.6,0.6336]
[1760029299625,2.33307863,4286.2,4284.6,0.6336]
[1760029300015,2.33290563,4286.5,4284.6,0.6336]
[1760029300016,2.33291171,4286.5,4284.8,0.6336]
[1760029300338,3.28177856,4286.7,4284.7,0.6336]
[1760029300542,2.33302314,4286.3,4284.7,0.6336]
[1760029300838,0.48129306,4286.6,4284.9,2.5536]
[1760029301297,0.48129306,4286.6,4285.0,5.902]
[1760029301689,0.48129306,4286.6,4284.3,0.001]
[1760029301887,2.33316464,4286.1,4284.5,0.6336]
[1760029302094,2.33308037,4286.2,4284.7,2.96747748]
[1760029302392,2.33307864,4286.2,4284.7,0.6336]
[1760029302729,0.48129306,4286.5,4284.9,1.92]
[1760029302892,2.33322057,4286.0,4284.9,1.92]
[1760029303095,1.92,4285.8,4284.3,0.001]
[1760029303440,0.02339306,4285.7,4284.3,0.001]
[1760029303723,0.4579,4285.6,4284.3,0.001]
[1760029303927,2.33380579,4284.9,4284.3,0.001]
[1760029304115,0.116,4284.5,4284.3,0.001]
[1760029304624,2.7919491,4284.4,4284.3,0.001]
[1760029304812,2.7919491,4284.4,4284.1,0.005]
[1760029304813,0.4579,4284.4,4284.1,0.005]
[1760029304995,2.33415806,4284.2,4284.1,0.005]
[1760029305190,0.96600354,4284.3,4284.1,0.005]
[1760029305526,2.78585806,4284.2,4284.1,0.005]
[1760029305737,2.78585806,4284.2,4283.8,0.001]
[1760029305738,2.33453951,4283.5,4283.4,0.001]
[1760029305933,2.35793257,4283.5,4283.4,0.001]
[1760029306233,4.72963257,4283.5,4283.4,0.001]
[1760029306445,5.19673179,4283.5,4283.4,0.001]
[1760029306734,2.33514093,4282.4,4282.1,0.005]
[1760029306938,2.33471597,4283.2,4282.1,0.005]
[1760029307237,0.02339306,4283.2,4282.1,0.005]
[1760029307453,0.02339306,4283.3,4282.1,0.005]
[1760029307806,0.4517,4283.2,4282.1,0.005]
[1760029308002,0.02339306,4283.1,4282.1,0.005]
[1760029308204,0.23999306,4283.6,4282.1,2.3941]
[1760029308431,0.4517,4283.9,4282.2,0.6336]
[1760029308630,2.78603119,4283.9,4282.5,0.6336]
[1760029308938,0.4517,4283.9,4282.5,0.6336]
[1760029309240,2.33443051,4283.7,4282.1,0.005]
[1760029309436,2.33524823,4282.2,4282.1,0.005]
[1760029309806,2.33510216,4282.5,4282.1,0.005]
[1760029310026,0.4517,4283.2,4282.1,0.005]
[1760029310643,0.4517,4283.2,4282.2,0.02335248]
[1760029310949,0.4517,4283.2,4282.3,4.352]
[1760029310950,2.7864511,4283.2,4282.3,4.352]
[1760029311133,0.4517,4283.2,4282.4,0.4357]
[1760029311347,0.4517,4283.8,4282.5,9.191]
[1760029311725,0.4517,4283.8,4282.6,0.0233503]
[1760029311936,0.4517,4283.8,4282.4,0.4357]
[1760029312257,0.4517,4283.8,4282.4,2.77083528]
[1760029312420,0.48961261,4284.1,4282.5,8.29851457]
[1760029312759,0.2166,4284.2,4282.6,1.92]
[1760029312956,0.2166,4284.2,4282.8,2.334878]
[1760029313122,0.4517,4284.1,4282.9,9.638]
[1760029313327,0.4517,4284.1,4283.0,1.21916]
[1760029314235,0.4517,4284.1,4282.6,2.33501073]
[1760029314236,0.48978252,4284.4,4283.1,9.633]
[1760029314451,2.33395675,4284.6,4283.1,11.96770323]
[1760029314632,0.48978252,4284.6,4283.3,0.6336]
[1760029314832,0.116,4284.7,4283.9,0.116]
[1760029315028,0.116,4284.7,4284.0,9.629]
[1760029315273,0.116,4284.7,4284.1,7.201]
[1760029315582,2.33409837,4284.4,4283.9,0.116]
[1760029315883,0.4517,4284.3,4284.0,4.638]
[1760029316167,0.4517,4284.2,4283.9,0.116]
[1760029316329,0.4517,4284.1,4284.0,9.625]
[1760029316527,0.116,4284.7,4284.0,9.625]
[1760029316733,0.573,4284.7,4284.0,9.625]
[1760029317161,0.573,4284.7,4284.1,7.196]
[1760029317339,0.573,4284.7,4284.1,9.623]
[1760029317551,0.005,4284.9,4284.2,0.02334158]
[1760029317727,0.005,4284.9,4284.8,0.116]
[1760029318456,0.005,4284.9,4284.8,3.08343121]
[1760029318645,0.005,4284.9,4284.8,15.16356952]
[1760029318975,0.005,4284.9,4284.8,15.14023121]
[1760029319343,0.005,4285.9,4284.9,4.88737675]
[1760029319570,0.005,4285.9,4285.6,1.92]
[1760029319764,0.005,4285.9,4285.0,4.17177045]
[1760029319943,0.005,4285.9,4285.8,0.116]
[1760029320245,0.005,4285.9,4285.8,5.00288666]
[1760029320464,0.005,4285.9,4285.8,9.70168666]
[1760029320661,0.005,4285.9,4285.8,7.3684]
[1760029320861,0.005,4285.9,4285.8,24.32188666]
[1760029321069,0.005,4285.9,4285.8,27.00145711]
[1760029321631,1e-08,4285.9,4285.8,26.88545711]
[1760029323480,1e-08,4285.9,4285.8,7.56645711]
[1760029323641,1e-08,4285.9,4285.8,24.62968666]
[1760029323844,1e-08,4285.9,4285.8,2.9814]
[1760029324065,1e-08,4285.9,4285.8,1.0614]
[1760029324282,1e-08,4285.9,4285.8,19.7398]
[1760029324498,1e-08,4285.9,4285.8,0.4278]
[1760029324768,1e-08,4285.9,4285.8,18.48288666]
[1760029325099,1e-08,4285.9,4285.8,20.56451966]
[1760029325271,1e-08,4285.9,4285.8,7.39631966]
[1760029325476,1e-08,4285.9,4285.8,24.62768666]
[1760029326338,1e-08,4285.9,4285.8,5.31468666]
[1760029326738,1e-08,4285.9,4285.8,24.62468666]
[1760029326938,1e-08,4285.9,4285.8,5.31468666]
[1760029327172,1e-08,4285.9,4285.8,24.62268666]
[1760029327372,1e-08,4285.9,4285.8,26.87445711]
[1760029327575,1e-08,4285.9,4285.8,11.97937045]
[1760029327777,1e-08,4285.9,4285.8,1.92]
[1760029327998,1e-08,4285.9,4285.8,9.599]
[1760029329594,1e-08,4285.9,4285.8,12.56588666]
[1760029329970,1e-08,4285.9,4285.8,14.91368666]
[1760029330795,1e-08,4285.9,4285.8,5.31468666]
[1760029330983,1e-08,4285.9,4285.8,20.18940746]
[1760029331312,1e-08,4285.9,4285.8,25.37649412]
[1760029331488,1e-08,4285.9,4284.5,0.4278]
[1760029331690,1e-08,4285.9,4285.8,0.116]
[1760029332206,1e-08,4285.9,4285.8,2.709]
[1760029332625,2.33339555,4285.6,4285.5,0.116]
[1760029332778,0.4548,4285.6,4285.5,4.849]
[1760029333115,2.33354847,4285.4,4284.2,9.704]
[1760029333293,2.33347467,4285.5,4284.3,8.1364]
[1760029333466,0.4548,4285.6,4284.3,10.5624]
[1760029333665,2.7881981,4285.6,4284.3,10.5624]
[1760029333864,0.4548,4285.6,4284.3,0.9704]
[1760029334095,0.4548,4285.6,4283.3,0.4278]
[1760029334297,0.4548,4285.6,4283.7,2.33443051]
[1760029334468,2.7882054,4285.6,4284.1,0.6336]
[1760029334668,2.7882076,4285.6,4284.3,1.92]
[1760029334868,0.4548,4285.6,4284.4,0.65694049]
[1760029335068,0.23590001,4285.9,4284.4,0.65694049]
[1760029335069,1e-08,4285.9,4284.8,0.6336]
[1760029335266,1e-08,4285.9,4285.0,2.33372228]
[1760029335500,1e-08,4285.9,4285.1,2.44933667]
[1760029335715,2.33339571,4285.6,4284.0,2.33424403]
[1760029336006,0.47819306,4285.5,4283.1,0.005]
[1760029336224,2.33374621,4285.0,4283.9,9.704]
[1760029336417,0.02339306,4285.7,4284.0,9.585]
[1760029336418,0.47819306,4284.9,4284.0,9.585]
[1760029336621,0.4548,4284.9,4284.1,9.60834212]
[1760029336819,0.4548,4284.9,4284.2,2.426]
[1760029337433,0.4548,4284.9,4284.3,7.159]
[1760029337748,0.4548,4284.9,4283.5,9.705]
[1760029337749,0.4548,4284.9,4284.4,9.582]
[1760029337938,2.33388568,4284.7,4283.1,0.48598]
[1760029338092,2.33437252,4283.9,4283.2,2.426]
[1760029338418,2.33437252,4283.9,4283.1,0.006]
[1760029338419,0.4524,4283.8,4283.1,0.006]
[1760029338611,0.4524,4283.8,4283.2,2.494]
[1760029339120,0.02339306,4284.2,4283.2,2.494]
[1760029339337,2.33442542,4283.8,4283.2,2.494]
[1760029339491,0.6714,4284.3,4283.2,2.494]
[1760029339692,2.33438195,4283.8,4283.2,2.494]
[1760029339889,0.6714,4284.3,4283.2,2.494]
[1760029340146,0.69479306,4284.3,4283.2,2.494]
[1760029340425,0.4501,4284.3,4283.3,0.00550499]
[1760029340621,0.4501,4284.3,4283.2,2.744]
[1760029340986,1.92,4285.1,4283.3,2.96819611]
[1760029341194,0.02339306,4285.0,4283.3,2.5536]
[1760029341394,0.4479,4285.2,4283.6,0.6336]
[1760029341795,2.33385278,4284.8,4283.5,0.6336]
[1760029342002,2.33377227,4285.0,4283.5,0.6336]
[1760029342202,2.80495185,4285.2,4283.5,0.6336]
[1760029342498,2.80495185,4285.2,4283.4,0.53036]
[1760029342499,0.4479,4285.2,4283.9,2.33430088]
[1760029342695,0.116,4285.1,4284.0,3.966]
[1760029343032,0.4479,4285.8,4284.4,2.33400127]
[1760029343223,0.11800001,4285.9,4285.0,0.116]
[1760029343397,0.11800001,4285.9,4285.1,8.517]
[1760029343736,0.11800001,4285.9,4285.5,0.116]
[1760029343737,0.00200001,4285.9,4285.5,0.116]
[1760029344102,2.33334111,4285.7,4283.8,0.4278]
[1760029344422,0.457,4285.8,4283.4,0.53036]
[1760029344423,0.47809306,4285.6,4283.9,2.426]
[1760029344612,2.44990906,4284.7,4284.0,4.665]
[1760029344798,2.33394585,4284.6,4284.0,4.665]
[1760029345198,2.33394015,4284.6,4284.0,0.116]
[1760029345402,0.116,4284.7,4284.0,0.116]
[1760029345643,2.33409307,4284.4,4284.1,2.533]
[1760029345850,2.78883873,4284.3,4284.1,2.533]
[1760029346205,2.33415806,4284.2,4284.1,2.533]
[1760029346403,2.78885806,4284.2,4284.1,2.533]
[1760029346604,0.4547,4284.2,4283.1,0.006]
[1760029346810,0.116,4283.9,4283.2,2.548]
[1760029347028,2.33454555,4283.5,4283.2,2.548]
[1760029347230,2.33464851,4283.3,4283.2,0.116]
[1760029347540,2.33459401,4283.4,4283.2,2.54]
[1760029347845,0.4613,4284.3,4283.2,2.7946]
[1760029348023,2.33388315,4284.8,4283.2,2.7946]
[1760029348224,0.4589,4284.9,4283.3,4.25461273]
[1760029348410,0.4589,4284.9,4283.4,2.99153766]
[1760029348611,0.23090001,4285.9,4283.4,0.65694594]
[1760029348826,0.48229306,4285.8,4283.8,0.6336]
[1760029349013,0.48229306,4285.8,4284.0,4.88786527]
[1760029349014,2.81560441,4285.8,4284.0,4.88786527]
[1760029349207,0.48229306,4285.8,4284.1,5.965]
[1760029349515,0.48229306,4285.8,4284.2,2.33414888]
[1760029349710,2.33344221,4285.6,4284.3,3.00527489]
[1760029350035,0.4589,4285.8,4284.3,3.00527489]
[1760029350036,0.48229306,4285.8,4284.3,3.00527489]
[1760029350346,0.4589,4285.8,4284.4,6.562]
[1760029350556,0.00200001,4285.9,4284.5,1.94333994]
[1760029350846,2.33523318,4285.9,4284.5,1.92]
[1760029351014,2.33328666,4285.8,4284.6,20.1505394]
[1760029351211,0.00200001,4285.9,4284.6,20.1272]
[1760029351426,0.00200001,4285.9,4285.3,2.33354263]
[1760029351759,0.00200001,4285.9,4285.4,9.59733504]
[1760029352069,0.00200001,4285.9,4285.5,0.6336]
[1760029352235,0.00200001,4285.9,4285.8,2.33328666]
[1760029352437,0.00200001,4285.9,4285.8,2.35661952]
[1760029352624,0.00200001,4285.9,4285.8,7.146]
[1760029352823,0.00200001,4285.9,4285.8,9.573]
[1760029353121,0.00200001,4285.9,4285.8,7.143]
[1760029353459,0.00200001,4285.9,4285.8,9.57]
[1760029353756,0.00200001,4285.9,4285.8,11.596876]
[1760029354259,0.00200001,4285.9,4285.8,9.566]
[1760029354445,0.00200001,4285.9,4285.0,0.6336]
[1760029354655,0.00200001,4285.9,4285.1,4.133]
[1760029354656,0.4586,4285.8,4285.1,4.133]
[1760029354823,0.4586,4285.8,4284.1,2.1321]
[1760029354824,0.4586,4285.8,4284.1,0.2121]
[1760029355025,0.4586,4285.8,4284.2,12.133]
[1760029355026,2.33334111,4285.7,4284.2,12.133]
[1760029355329,2.33343712,4285.6,4284.3,1.92]
[1760029355544,0.4586,4285.8,4284.2,13.65436]
[1760029355856,2.33334628,4285.7,4284.4,2.33403454]
[1760029356063,0.4586,4285.8,4284.4,0.6336]
[1760029356265,0.4586,4285.8,4282.6,0.001]
[1760029356566,0.4586,4285.8,4283.3,2.8666]
[1760029356567,0.02339306,4285.7,4283.3,2.8666]
[1760029356864,2.33370217,4285.1,4283.4,1.97096]
[1760029357175,0.02339306,4285.5,4283.9,4.25429962]
[1760029357330,0.4586,4285.6,4284.3,0.6336]
[1760029357526,0.00200001,4285.9,4284.5,1.92]
[1760029357727,0.00200001,4285.9,4285.6,2.33339]
[1760029357963,0.00200001,4285.9,4285.8,2.44928666]
[1760029358127,0.00200001,4285.9,4285.8,5.02621952]
[1760029358322,0.00200001,4285.9,4285.8,2.6696]
[1760029358527,0.00200001,4285.9,4285.8,17.9016]
[1760029359826,0.00200001,4285.9,4285.8,20.23488666]
[1760029360156,0.00200001,4285.9,4285.8,9.547]
[1760029360621,0.00200001,4285.9,4284.7,0.4406]
[1760029360622,2.33344708,4285.6,4284.6,9.706]
[1760029360826,0.46060001,4285.9,4282.3,2.33516393]
[1760029360827,0.68980001,4285.9,4282.7,2.33596143]
[1760029361126,0.68980001,4285.9,4283.5,0.4406]
[1760029361352,0.68980001,4285.9,4283.9,2.33429488]
[1760029361353,2.33328666,4285.8,4283.9,2.33429488]
[1760029361538,0.68980001,4285.9,4284.1,2.33417025]
[1760029361859,0.46060001,4285.9,4284.3,1.92]
[1760029362071,0.00200001,4285.9,4284.6,0.6336]
[1760029362227,0.00200001,4285.9,4284.2,3.6827]
[1760029362228,0.00200001,4285.9,4284.7,0.30596]
[1760029362428,0.00200001,4285.9,4284.8,4.346]
[1760029362664,0.00200001,4285.9,4285.0,1.92]
[1760029362863,0.00200001,4285.9,4284.9,2.5536]
[1760029363050,0.00200001,4285.9,4284.9,0.6336]
[1760029363262,0.00200001,4285.9,4282.7,2.33592246]
[1760029363263,2.33328666,4285.8,4284.3,1.92]
[1760029363576,0.00200001,4285.9,4284.7,2.5536]
[1760029363785,0.00200001,4285.9,4284.5,1.92]
[1760029363786,0.00200001,4285.9,4284.5,2.5536]
[1760029364296,0.00200001,4285.9,4284.7,4.88746143]
[1760029364636,0.68980001,4285.9,4284.8,2.426]
[1760029364870,0.2261,4285.8,4285.0,1.92]
[1760029365163,0.46060001,4285.9,4285.0,1.92]
[1760029365466,0.46060001,4285.9,4285.0,4.25370013]
[1760029365467,0.00200001,4285.9,4285.0,4.25370013]
[1760029365653,0.00200001,4285.9,4285.1,0.65693667]
[1760029365856,0.00200001,4285.9,4285.2,2.33355984]
[1760029366032,0.00200001,4285.9,4285.3,3.07897336]
[1760029366233,0.00200001,4285.9,4285.3,0.72208702]
[1760029366463,0.00200001,4285.9,4285.1,0.6336]
[1760029366665,0.00200001,4285.9,4285.3,0.6336]
[1760029366939,0.00200001,4285.9,4285.4,2.33350275]
[1760029367160,0.00200001,4285.9,4285.6,1.92]
[1760029367362,0.00200001,4285.9,4285.7,2.426]
[1760029367973,0.00200001,4285.9,4285.8,0.02333286]
[1760029368147,0.00200001,4285.9,4285.8,3.03983286]
[1760029368348,0.00200001,4285.9,4285.8,15.07911952]
[1760029368562,0.00200001,4285.9,4285.8,15.05578666]
[1760029368775,0.00200001,4285.9,4285.7,1.12929697]
[1760029368949,0.00200001,4285.9,4285.0,0.4629]
[1760029369274,0.00200001,4285.9,4284.0,2.33422977]
[1760029369275,0.00200001,4285.9,4285.3,4.25355216]
[1760029369571,0.00200001,4285.9,4285.2,0.6336]
[1760029369742,0.00200001,4285.9,4285.4,4.25345611]
[1760029369941,0.00200001,4285.9,4285.2,4.88720547]
[1760029369942,0.00200001,4285.9,4285.2,2.96720547]
[1760029370247,0.00200001,4285.9,4285.8,0.116]
[1760029370453,0.00200001,4285.9,4285.8,0.7496]
[1760029370772,0.44480001,4285.9,4285.8,2.426]
[1760029370953,0.44480001,4285.9,4284.2,0.4629]
[1760029371273,0.44480001,4285.9,4284.2,2.79701343]
[1760029371274,2.33332548,4285.8,4284.2,2.79701343]
[1760029371476,0.44480001,4285.9,4284.3,15.2970017]
[1760029371477,2.33335688,4285.7,4284.3,15.2970017]
[1760029371777,0.44480001,4285.9,4284.7,2.33384489]
[1760029371949,0.44480001,4285.9,4284.5,1.92]
[1760029371950,0.00200001,4285.9,4284.8,0.4629]
[1760029372151,0.22810001,4285.9,4284.3,0.30091134]
[1760029372374,0.00200001,4285.9,4284.8,1.92]
[1760029372574,2.33523462,4285.9,4284.8,1.92]
[1760029372877,0.00200001,4285.9,4284.8,1.92]
[1760029373090,0.4428,4285.8,4284.0,2.33422025]
[1760029373381,2.56133465,4285.9,4282.6,2.33600403]
[1760029373382,0.02339306,4285.7,4283.6,2.79738227]
[1760029373541,0.02339306,4285.8,4283.7,0.32527192]
[1760029373747,0.02339306,4285.8,4282.6,0.001]
[1760029373748,2.33383209,4284.8,4283.8,2.601]
[1760029373986,0.22810001,4285.9,4283.8,0.175]
[1760029373987,0.02339306,4285.4,4283.8,0.175]
[1760029374201,0.00200001,4285.9,4283.8,0.175]
[1760029374202,0.00200001,4285.9,4285.8,2.96688666]
[1760029374347,0.00200001,4285.9,4285.8,18.68988666]
[1760029374551,0.00200001,4285.9,4285.8,19.15278666]
[1760029374782,0.00200001,4285.9,4285.8,21.30140161]
[1760029374993,0.00200001,4285.9,4285.8,21.30240161]
[1760029375559,0.00200001,4285.9,4285.8,7.49940161]
[1760029375762,0.00200001,4285.9,4285.8,5.35078666]
[1760029376281,0.00200001,4285.9,4285.8,24.57978666]
[1760029376901,1e-08,4286.9,4286.3,2.96661448]
[1760029377052,0.005,4287.9,4286.8,2.1241]
[1760029377373,0.005,4287.9,4287.8,4.88579833]
[1760029377561,0.005,4287.9,4286.8,0.2041]
[1760029377748,0.005,4287.9,4286.9,0.6336]
[1760029377948,0.005,4287.9,4287.0,0.671]
[1760029378177,0.005,4287.9,4287.1,0.02332579]
[1760029378378,0.005,4287.9,4287.1,2.35589571]
[1760029378599,0.005,4287.9,4287.3,2.33247009]
[1760029378751,0.005,4287.9,4287.4,0.45090374]
[1760029379063,0.005,4287.9,4287.5,2.426]
[1760029379263,0.005,4287.9,4287.6,7.12032306]
[1760029379452,0.005,4287.9,4287.6,7.097]
[1760029379647,0.005,4287.9,4287.7,2.33225221]
[1760029379860,0.005,4287.9,4287.8,0.02332198]
[1760029380252,0.005,4287.9,4287.7,1.27151318]
[1760029380478,0.005,4287.9,4287.8,3.53742031]
[1760029380651,0.005,4287.9,4287.8,1.1819]
[1760029380853,0.005,4287.9,4287.8,3.51409833]
[1760029381050,0.002,4288.3,4288.2,2.96558078]
[1760029381290,0.002,4288.3,4288.2,4.90094952]
[1760029381451,0.002,4288.3,4288.2,12.41488078]
[1760029381855,0.002,4288.8,4288.7,4.8853089]
[1760029382056,0.002,4288.8,4288.7,24.1093089]
[1760029382254,0.002,4288.8,4288.0,0.005]
[1760029382553,0.002,4288.8,4288.3,0.6336]
[1760029382751,0.002,4288.8,4288.0,0.005]
[1760029383188,2.33203516,4288.1,4288.0,0.005]
[1760029383386,0.4451,4288.1,4288.0,0.005]
[1760029383687,2.80052822,4288.1,4288.0,0.005]
[1760029384064,4.72052822,4288.1,4288.0,0.0005]
[1760029384387,2.33203516,4288.1,4288.0,0.0005]
[1760029384588,0.4406,4288.1,4288.0,0.0005]
[1760029384792,2.77263516,4288.1,4288.0,0.0005]
[1760029384955,4.71602822,4288.1,4288.0,0.0005]
[1760029385155,4.69263516,4288.1,4288.0,0.0005]
[1760029385594,5.32623516,4288.1,4288.0,0.0005]
[1760029385804,5.81660197,4288.1,4288.0,0.0005]
[1760029386004,10.0079808,4288.1,4288.0,0.0005]
[1760029386203,10.36292697,4288.1,4288.0,0.0005]
[1760029386712,2.33306891,4286.2,4286.1,0.005]
[1760029387014,2.35646197,4286.2,4286.1,0.005]
[1760029387177,0.4406,4286.7,4286.1,0.005]
[1760029387495,0.4406,4287.3,4286.2,0.706]
[1760029387696,0.4406,4287.3,4286.2,0.3136]
[1760029387858,2.3326422,4287.0,4286.1,0.005]
[1760029388060,0.46399306,4287.3,4286.2,2.874]
[1760029388368,0.46399306,4287.3,4286.3,7.621]
[1760029388687,0.46399306,4287.3,4286.1,0.005]
[1760029388688,2.33284269,4286.7,4286.1,0.005]
[1760029388875,0.46399306,4287.3,4286.1,0.005]
[1760029388876,0.46399306,4287.3,4286.4,9.52]
[1760029389063,2.33263624,4287.0,4286.4,9.52]
[1760029389260,2.33269375,4286.9,4286.4,9.52]
[1760029389498,0.4406,4287.3,4286.4,9.52]
[1760029389790,0.4406,4287.9,4286.4,10.4725]
[1760029389992,0.4406,4287.9,4286.4,8.0475]
[1760029389993,0.46399306,4287.9,4286.4,8.0475]
[1760029390159,0.46399306,4287.9,4286.4,0.9525]
[1760029390364,0.4406,4287.8,4286.1,0.005]
[1760029390558,0.4406,4287.8,4286.1,0.0005]
[1760029390559,0.6336,4287.1,4286.1,0.0005]
[1760029390762,0.6336,4286.5,4286.1,0.0005]
[1760029391069,0.6336,4286.5,4284.1,0.005]
[1760029391070,0.6336,4285.8,4284.1,0.005]
[1760029391271,2.56341336,4285.2,4284.1,0.005]
[1760029391609,5.14040642,4285.2,4285.1,0.0005]
[1760029391812,2.96754015,4284.6,4284.1,0.005]
[1760029392012,2.33415806,4284.2,4284.1,0.0006]
[1760029392216,2.35755112,4284.2,4284.1,0.0006]
[1760029392707,0.4271,4284.2,4284.1,0.0006]
[1760029392911,0.4271,4284.9,4284.1,2.4256]
[1760029393113,0.01,4285.8,4284.2,0.02334158]
[1760029393114,0.4271,4285.4,4284.2,0.02334158]
[1760029393323,0.4271,4285.4,4284.1,2.66816]
[1760029393537,0.4271,4285.4,4284.2,0.02334158]
[1760029393690,0.4271,4285.4,4284.2,2.35749151]
[1760029394027,0.4271,4285.4,4284.3,0.50256515]
[1760029394192,0.2318,4285.7,4284.4,6.749]
[1760029394518,0.01,4285.8,4285.3,0.001]
[1760029394718,0.4352,4286.0,4285.3,7.097]
[1760029394881,0.2356,4285.9,4285.3,0.001]
[1760029395080,4.25328666,4285.8,4285.3,0.001]
[1760029395381,2.33345,4285.5,4285.3,0.001]
[1760029395588,2.35689751,4285.4,4285.3,0.001]
[1760029395794,2.77829751,4285.4,4285.3,0.001]
[1760029396003,0.02339306,4285.4,4285.3,0.001]
[1760029396215,0.2356,4285.9,4285.3,0.001]
[1760029396420,0.02339306,4285.8,4285.3,0.001]
[1760029396632,0.01,4286.0,4285.3,0.001]
[1760029396931,0.4214,4286.1,4285.3,0.001]
[1760029396932,0.4314,4286.1,4285.3,0.001]
[1760029397143,0.01,4286.1,4285.4,0.231]
[1760029397444,0.01,4286.8,4285.5,0.6336]
[1760029397734,9.85355747,4288.8,4285.8,0.6336]
[1760029397947,10.04407936,4289.1,4286.0,0.6336]
[1760029397948,0.02339306,4288.4,4286.0,0.6336]
[1760029398147,0.02339306,4288.8,4286.4,2.33292114]
[1760029398297,2.35509449,4288.8,4286.1,0.6633]
[1760029398649,2.33181765,4288.5,4285.9,0.6336]
[1760029398796,2.33181765,4288.5,4286.2,2.33302454]
[1760029398797,2.33222522,4287.8,4286.2,2.33302454]
[1760029398999,2.33243044,4287.4,4286.3,2.426]
[1760029399324,2.33240103,4287.5,4286.3,2.426]
[1760029399492,2.33242188,4287.4,4286.4,0.4577]
[1760029399916,2.33246371,4287.4,4286.4,0.4577]
[1760029400113,2.33259656,4287.1,4286.5,9.522]
[1760029400390,2.33266414,4287.0,4286.6,9.522]
[1760029400598,2.33266414,4287.0,4286.6,7.096]
[1760029400798,0.02339306,4287.2,4286.1,0.005]
[1760029401027,0.0022,4286.9,4286.1,0.005]
[1760029401251,2.33306891,4286.2,4286.1,0.005]
[1760029401410,2.35866197,4286.2,4286.1,0.005]
[1760029401830,0.02339306,4286.2,4286.1,0.005]
[1760029402011,2.33280145,4286.7,4286.1,0.005]
[1760029402341,2.33268574,4287.0,4286.3,0.116]
[1760029402342,0.116,4287.0,4286.3,0.116]
[1760029402508,0.116,4287.7,4286.6,0.116]
[1760029402696,0.116,4287.7,4287.0,0.116]
[1760029402697,2.33230913,4287.6,4287.0,0.116]
[1760029402897,0.116,4287.7,4287.0,0.116]
[1760029403134,0.002,4291.4,4287.1,0.02332579]
[1760029403135,2.35738045,4288.6,4287.1,0.02332579]
[1760029403301,0.02539306,4289.2,4287.1,0.6336]
[1760029403509,0.116,4288.6,4287.9,0.116]
[1760029403696,2.33186004,4288.5,4288.0,4.617]
[1760029404049,2.33187213,4288.4,4286.4,0.6336]
[1760029404246,2.33236332,4287.5,4286.0,0.6336]
[1760029404546,2.33237909,4287.5,4286.5,0.589]
[1760029404722,2.33417081,4288.3,4286.5,0.589]
[1760029404922,0.0022,4288.3,4286.6,0.26128094]
[1760029405133,0.0022,4288.3,4286.6,0.2509]
[1760029405468,0.02839306,4288.9,4286.8,2.96633874]
[1760029405766,2.35999545,4288.9,4286.9,1.92]
[1760029405974,0.005,4288.9,4287.1,2.5536]
[1760029406129,0.005,4288.9,4287.3,0.6336]
[1760029406328,0.005,4288.9,4287.8,2.33217746]
[1760029406534,0.005,4288.9,4287.9,2.426]
[1760029407027,2.33661048,4288.9,4288.0,7.764]
[1760029407227,0.005,4288.9,4288.0,8.5404]
[1760029407458,0.005,4288.9,4288.1,0.46277962]
[1760029407747,0.005,4288.9,4288.0,8.5404]
[1760029407748,0.02839306,4288.9,4288.0,0.7764]
[1760029407914,0.005,4288.9,4287.9,2.426]
[1760029408113,0.005,4288.9,4287.2,0.4411]
[1760029408114,2.33216736,4287.9,4286.8,1.92]
[1760029408351,2.33209418,4288.0,4287.0,1.92]
[1760029408525,2.33194342,4288.3,4287.1,0.4411]
[1760029408733,0.02839306,4288.9,4287.1,0.4411]
[1760029409048,2.3317089,4288.7,4287.2,6.091]
[1760029409222,0.02339306,4288.6,4287.2,6.7001]
[1760029409548,2.33237134,4287.5,4286.2,2.3330189]
[1760029409762,2.33665443,4288.9,4286.0,0.4411]
[1760029409763,0.02339306,4288.3,4286.0,0.4411]
[1760029409917,0.02339306,4288.3,4285.3,0.001]
[1760029409918,2.33235035,4287.6,4286.2,2.80533068]
[1760029410239,4.89,4288.6,4286.2,2.80533068]
[1760029410240,0.0042,4289.2,4286.4,0.6336]
[1760029410437,2.33196867,4288.3,4287.0,2.33262877]
[1760029410639,2.35999755,4288.9,4287.3,2.33242561]
[1760029410826,2.33184521,4288.5,4287.4,1.16686546]
[1760029411017,0.02839306,4288.9,4287.4,1.16686546]
[1760029411213,0.02839306,4288.9,4287.5,7.181]